Cogmind - Beta 15 @@@ ROGUE MODE // 2025.09.07 @ 03:31:16 Player: odium reigns Result: Destroyed by S-43 Plague with Heavy Machine Gun Performance ------------- Evolutions (7) 3500 Regions Visited (23) 4600 Robots Destroyed (315) 1575 Value Destroyed (13898) 13898 Prototype IDs (51) 1020 Alien Tech Used (2) 400 Bonus (7180) 7180 TOTAL SCORE: 32173 Bonus ------- High Alert Combat Kills 1906 Follower Combat Kills 2316 Entered DSFs 500 Network Hubs Disabled 200 Met Data Miner 300 Acquired ECA 300 Met Zhirov 300 Built Enhanced Grunts 300 A7 Reached Mainframe 300 Met R17 at Cetus 500 Scanned by Researcher 500 Friendly Fire -242 Cogmind --------- Core Integrity 0/1300 Matter 226/300 Energy 89/100 System Corruption 20% Temperature Cool (0) Movement Core (100) Ox1 Location -3/Testing Parts ------- > --- POWER (2) -------- (None) > --- PROPULSION (6) --- (None) > --- UTILITY (8) ------ (None) > --- WEAPON (5) ------- Compact Mass Driver > --- INVENTORY (5) ---- Precision Phase Gun Heavy Dispersion Rifle Heavy Disruptor Cannon Peak State ------------ > --- POWER ------------ Particle Reactor Quantum Reactor > --- PROPULSION ------- Centrium Heavy Treads Centrium Heavy Treads Centrium Heavy Treads > --- UTILITY ---------- Advanced Heat Sink Advanced Heat Sink Experimental Heat Sink Huge Storage Unit Active Sensor Suite Experimental Target Analyzer > --- WEAPON ----------- Advanced Variable Charge Gun Precision Phase Gun Heavy Disruptor Cannon Nova Cannon > --- INVENTORY -------- Heavy Siege Treads Heavy Siege Treads Centrium Heavy Treads Experimental Power Amplifier Advanced Coolant Injector Encrypted Comm Array Improved Target Analyzer Advanced Recoil Stabilizer Precision Matter Filter Weapon Cycler Graphene Brace Advanced Focal Shield Improved Force Field Advanced Point Defense System Improved Field Recycling Unit Transdimensional Reconstructor Integrated Dissipator Advanced Variable Charge Gun Heavy Disruptor Cannon Gamma Bomb Array [Rating: 182] Favorites ----------- Power Heavy Ion Engine Engine Heavy Ion Engine Power Core Light Fission Core Reactor Quantum Reactor Propulsion Medium Treads Treads Medium Treads Leg Multireflex Exoskeleton Hover Unit Aerolev Unit Utility Huge Storage Unit Device Advanced Heat Sink Storage Huge Storage Unit Processor Advanced Signal Interpreter Hackware Improved Hacking Suite Protection Centrium Medium Armor Plating Weapon Cooled Plasma Cannon Energy Gun Variable Charge Gun Energy Cannon Cooled Plasma Cannon Ballistic Gun Enhanced Autogun Ballistic Cannon Enhanced Gauss Cannon Launcher Precision Rocket Launcher Special Weapon Improved Plasma Cutter Build | -11 -10 -9 -8 -8 -7 -7 -6 -6 -6 -6 -5 -5 -5 -5 -5 -4 -4 -4 -4 -4 -4 -3 -3 ------- Run | Yrd Mat Mat Mat Sto Fac DSF Fac Low Low Dat Pro Fac Upp Upp Zhi Pro Fac Ext Cet Arc Hub Res Tes Slots Evolved 14 | . . 2 2 . 2 . 2 . . . . 2 . . . . 2 . . . . 2 . Power 1 | . . . . . . . 1 . . . . . . . . . . . . . . . . Propulsion 4 | . . 1 . . 1 . 1 . . . . . . . . . 1 . . . . . . Utility 6 | . . . 1 . 1 . . . . . . 1 . . . . 1 . . . . 2 . Weapon 3 | . . 1 1 . . . . . . . . 1 . . . . . . . . . . . Parts Attached 271 | 7 2 13 17 28 5 11 15 2 1 . 2 20 6 4 3 8 10 37 21 5 4 25 25 Power 35 | 1 . 2 3 2 . . 2 1 1 . . 2 1 1 1 1 2 7 4 . 2 . 2 Engine 11 | 1 . 2 1 2 . . 1 . 1 . . 1 . 1 . 1 . . . . . . . Core 13 | . . . 2 . . . 1 1 . . . 1 1 . . . . 4 1 . 2 . . Reactor 11 | . . . . . . . . . . . . . . . 1 . 2 3 3 . . . 2 Propulsion 64 | 2 2 4 4 7 1 5 3 1 . . . 6 . 2 . 1 2 4 3 2 . 8 7 Treads 44 | 2 . 3 1 6 1 5 3 1 . . . 5 . 2 . 1 . . 3 2 . 4 5 Leg 19 | . 2 1 3 . . . . . . . . 1 . . . . 2 4 . . . 4 2 Wheel . | . . . . . . . . . . . . . . . . . . . . . . . . Hover 1 | . . . . 1 . . . . . . . . . . . . . . . . . . . Flight . | . . . . . . . . . . . . . . . . . . . . . . . . Utility 81 | 2 . 2 5 7 4 1 3 . . . 1 6 2 1 2 3 4 12 7 2 1 11 5 Device 48 | 1 . . 3 6 1 . . . . . . 4 2 1 1 2 1 10 3 1 1 7 4 Storage 4 | 1 . 1 . . . . 1 . . . . . . . . . . . . . . 1 . Processor 12 | . . . 2 1 1 1 2 . . . . 1 . . . . 2 1 . . . . 1 Hackware 4 | . . . . . 1 . . . . . . . . . . . 1 . . 1 . 1 . Protection 13 | . . 1 . . 1 . . . . . 1 1 . . 1 1 . 1 4 . . 2 . Artifact . | . . . . . . . . . . . . . . . . . . . . . . . . Weapon 91 | 2 . 5 5 12 . 5 7 . . . 1 6 3 . . 3 2 14 7 1 1 6 11 Energy Gun 25 | 1 . 1 2 1 . . 1 . . . . 2 1 . . . 2 6 3 . . 2 3 Energy Cannon 15 | . . . . 1 . . 3 . . . 1 2 . . . . . 3 . . 1 2 2 Ballistic Gun 33 | 1 . 4 3 7 . 4 2 . . . . . 1 . . 1 . 2 3 1 . . 4 Ballistic Cannon 8 | . . . . 1 . 1 . . . . . 1 1 . . . . 3 . . . . 1 Launcher 7 | . . . . 1 . . 1 . . . . 1 . . . 1 . . . . . 2 1 Special Weapon 3 | . . . . 1 . . . . . . . . . . . 1 . . 1 . . . . Impact Weapon . | . . . . . . . . . . . . . . . . . . . . . . . . Slashing Weapon . | . . . . . . . . . . . . . . . . . . . . . . . . Piercing Weapon . | . . . . . . . . . . . . . . . . . . . . . . . . Special Melee Weapon . | . . . . . . . . . . . . . . . . . . . . . . . . Unidentified Prototypes 34 | . . 1 2 6 . . 4 . . . . 2 . . 3 . . . 4 . 2 1 9 Corrupted Parts 1 | . . . . . . . . . . . . . . . . . . . . . . 1 . System Corruption 7 | . . . . . . . . . . . . . . . . . . . . . . 7 . Parts Lost 51 | . . . . 1 . 3 . 1 . . 2 4 4 1 . 3 . 2 . . 1 12 17 Power 6 | . . . . . . . . 1 . . . . 1 . . . . . . . . 1 3 Propulsion 16 | . . . . . . 2 . . . . . 2 1 1 . 1 . . . . . 3 6 Utility 14 | . . . . . . 1 . . . . 1 1 1 . . 1 . 1 . . . 3 5 Weapon 15 | . . . . 1 . . . . . . 1 1 1 . . 1 . 1 . . 1 5 3 Highest Loss Streak 8 | . . . . 1 . 2 . 1 . . 2 1 2 1 . 2 . 1 . . 1 8 7 To Critical Strikes 4 | . . . . 1 . . . . . . . . . . . . . . . . . . 3 Average Backups 21 | 2 6 19 24 24 23 24 24 24 24 25 22 20 19 18 19 20 21 20 21 21 21 20 18 Power . | . 1 3 2 1 1 1 . . . 1 1 . . . . . 1 1 1 1 1 . . Propulsion 2 | 1 2 4 5 3 2 2 1 1 . . . 3 4 4 4 4 4 1 . . . 2 1 Utility 12 | . . 3 8 12 14 15 15 16 16 17 16 14 12 11 11 11 11 14 14 13 13 11 10 Weapon 3 | . 2 9 8 6 5 4 5 5 5 5 3 1 1 1 1 1 . . 2 4 4 2 2 Tool/Special . | . . . . . . . . . . . . . . . . . . . . . . . . Unused Backups 71 | . 1 3 10 14 . 4 4 . . . . 6 . . 2 1 4 3 5 1 2 1 10 Power 8 | . . 2 1 2 . . . . . . . . . . . . . . 2 . 1 . . Propulsion 13 | . . . 1 6 . 2 . . . . . . . . 1 . 2 1 . . . . . Utility 33 | . 1 . 1 3 . . 4 . . . . 5 . . 1 1 2 2 2 1 1 1 8 Weapon 16 | . . 1 7 3 . 2 . . . . . . . . . . . . 1 . . . 2 Tool/Special 1 | . . . . . . . . . . . . 1 . . . . . . . . . . . Average Slot Usage (%) 93 | . 100 99 99 99 99 97 99 100 99 100 99 94 97 96 100 97 83 84 85 88 88 78 72 Engine 5 | . 14 10 6 7 7 7 10 6 12 13 13 6 2 . 5 5 1 . . . . . . Core 3 | . . . 2 1 . . 2 6 . . . 3 7 10 3 . . 7 3 2 6 4 2 Reactor 1 | . . . . . . . . . . . . . . . 1 5 8 2 6 7 3 3 4 Treads 21 | . 24 28 19 23 30 29 33 33 32 33 33 23 27 25 29 27 . . 10 19 21 15 9 Leg 4 | . 3 4 7 3 . . . . . . . . . . . . 14 19 9 . . 4 9 Device 9 | . 14 9 7 15 7 2 . . . . . 8 5 13 15 11 11 15 10 6 5 14 19 Storage 6 | . 14 11 9 9 7 7 6 6 6 6 6 5 5 5 5 5 5 5 5 5 5 4 3 Processor 6 | . . . 8 2 12 11 14 20 20 20 13 11 10 5 5 5 6 4 . . . . 2 Protection 3 | . . 1 1 . 1 . . . . . 5 1 5 3 1 4 2 2 11 15 15 4 . Energy Gun 5 | . 14 3 1 2 . . . . . . . 4 7 11 11 5 10 15 9 3 . 10 6 Energy Cannon 4 | . . . . . . . 10 13 13 13 12 12 9 . . . . 2 . . . 3 6 Ballistic Gun 11 | . 14 29 34 31 23 25 14 6 6 6 6 2 . 5 5 10 8 1 6 19 20 5 3 Ballistic Cannon 2 | . . . . 1 7 3 . . . . . 1 5 11 11 1 . 4 6 2 4 . . Launcher 1 | . . . . . . . . 6 6 6 6 5 2 . . 3 5 . . . . 1 . Peak Build Rating 182 | 9 9 23 36 43 45 54 70 71 70 70 71 97 100 97 101 101 124 125 159 159 156 160 182 Average Rating 89 | 5 8 19 30 38 43 48 66 70 69 70 70 84 96 96 97 94 120 119 141 155 153 148 155 On Entrance 78 | . 9 9 22 33 39 45 54 70 70 70 70 71 97 97 95 101 94 124 121 159 154 147 144 Naked Turns 28 | . . . . . . . . . . . . . . . . . . . . . . . 28 Heaviest Build 196 | 13 13 101 109 114 111 108 124 124 126 126 134 143 152 152 145 141 143 196 193 179 179 183 167 Greatest Support 240 | 40 40 60 60 66 89 89 132 124 116 116 116 139 139 127 127 127 108 122 190 218 218 218 240 Greatest Overweight (x) 6 | 2 . 2 2 4 1 1 1 . 1 1 1 1 1 1 1 1 1 1 2 . . 6 2 Average Overweight (x) . | . . 1 1 1 1 1 . . 1 1 1 . . 1 1 1 1 1 . . . . . Largest Inventory Capacity 25 | 8 8 25 25 25 25 25 25 25 25 25 25 25 25 25 25 25 25 25 25 25 25 25 25 Average Capacity 24 | 7 8 24 25 25 25 25 25 25 25 25 25 25 25 25 25 25 25 25 25 25 25 25 22 Most Carried 25 | 4 8 25 25 25 24 25 25 25 25 25 25 25 25 23 25 25 25 25 25 25 25 25 25 Average Carried 23 | 2 6 19 24 24 22 24 24 24 24 25 22 24 23 22 23 24 24 24 24 24 24 22 21 Final Capacity 25 | 8 8 25 25 25 25 25 25 25 25 25 25 25 25 25 25 25 25 25 25 25 25 25 5 Final Carried 25 | 4 8 25 25 25 22 25 25 24 25 25 24 24 22 23 25 25 25 25 25 25 24 24 4 Class Distribution -------------------- 37% | Gunner 20% | Scavenger-Tank 11% | Skirmisher 11% | Scavenger-Skirmisher 6% | Scavenger-Gunner 6% | Tank 3% | Commander-Tank Dominant Class ---------------- Mutant | -10/Materials Skirmisher | -9/Materials Scavenger-Gunner | -8/Materials Skirmisher | -8/Storage Skirmisher | -7/Factory Gunner | -7/DSF Gunner | -6/Factory Gunner | -6/Lower Caves Gunner | -6/Lower Caves Gunner | -6/Data Miner Gunner | -5/Proximity Caves Gunner | -5/Factory Gunner | -5/Upper Caves Tank | -5/Upper Caves Gunner | -5/Zhirov Scavenger-Tank | -4/Proximity Caves Scavenger-Skirmisher | -4/Factory Scavenger-Tank | -4/Extension Scavenger-Tank | -4/Cetus Scavenger-Tank | -4/Archives Scavenger-Tank | -4/Hub_04(d) Scavenger-Tank | -3/Research Scavenger-Skirmisher | -3/Testing Resources | -11 -10 -9 -8 -8 -7 -7 -6 -6 -6 -6 -5 -5 -5 -5 -5 -4 -4 -4 -4 -4 -4 -3 -3 ----------- Run | Yrd Mat Mat Mat Sto Fac DSF Fac Low Low Dat Pro Fac Upp Upp Zhi Pro Fac Ext Cet Arc Hub Res Tes Matter Collected 11268 | 275 123 684 1016 1970 . 563 245 121 136 . 322 578 472 439 . 459 187 1004 589 387 448 676 574 Remotely . | . . . . . . . . . . . . . . . . . . . . . . . . Salvage Created 15892 | 134 204 754 1213 2018 . 834 257 183 177 . 448 948 302 480 . 250 234 1388 460 582 384 2012 2630 Parts 702 | 15 10 53 61 101 . 36 16 6 13 . 29 38 19 10 . 6 10 43 30 23 13 91 79 Haulers Intercepted 19 | . 1 3 3 6 . . 1 . . . . 2 . . . . . . . . 2 . 1 Recyclers Shooed 10 | . . 2 . 1 . . . . . . . 1 . . . . . 2 . . 1 3 . Parts Field Recycled 27 | . . . 10 17 . . . . . . . . . . . . . . . . . . . Retrieved Matter 320 | . . . 104 216 . . . . . . . . . . . . . . . . . . . Parts Self-Destructed 78 | . . . . . . . . 8 11 . 25 . 17 11 . 6 . . . . . . . Prevented 5 | . . . . . . . . . 2 . . . 2 1 . . . . . . . . . Kills | -11 -10 -9 -8 -8 -7 -7 -6 -6 -6 -6 -5 -5 -5 -5 -5 -4 -4 -4 -4 -4 -4 -3 -3 ------- Run | Yrd Mat Mat Mat Sto Fac DSF Fac Low Low Dat Pro Fac Upp Upp Zhi Pro Fac Ext Cet Arc Hub Res Tes Combat Hostiles Destroyed 237 | . 3 16 20 32 . 12 2 4 6 . 23 13 10 8 . 6 4 16 7 3 2 24 26 Guns 144 | . 3 16 20 31 . 11 1 1 2 . 1 2 1 4 . 3 3 9 6 3 2 14 11 Cannons 52 | . . . . 1 . 1 1 3 2 . 4 7 8 4 . 1 . 6 1 . . 7 6 AOE 35 | . . . . . . . . . 2 . 18 4 . . . 2 1 1 . . . 2 5 Classes Destroyed 21 | 3 2 3 2 4 . 2 1 . 1 . . . . . . 1 . 1 . . . . 1 Worker 12 | 2 1 . 1 . . . . . . . . 5 . . . . . 1 . . . 1 1 Builder 12 | . . . . 1 . . . . . . . 4 . . . . . 3 . . . 3 1 Tunneler 2 | 1 . . . . . . . . . . . 1 . . . . . . . . . . . Hauler 19 | . 1 3 3 6 . . 1 . . . . 2 . . . . . . . . 2 . 1 Recycler 10 | 1 . 1 3 1 . . . . . . . . . . . . . 1 . . . 1 2 Mechanic 2 | . . . . . . . . . . . . . . . . . . 1 . . . . 1 Operator 11 | . . . 1 . . . 1 . . . . . . . . . . . . 9 . . . Drone 2 | . . . . . . . . . . . . . . . . 2 . . . . . . . Watcher 8 | . . 2 . 2 . . 1 . . . . 2 . . . . . . . . . . 1 Swarmer 44 | . . 8 6 2 . . . . 4 . 17 . 5 1 . . . 1 . . . . . Grunt 100 | . 3 5 9 16 . 7 . 3 . . 4 7 2 2 . 3 3 8 1 . . 12 15 Brawler 7 | . . . . 2 . . . . . . . . . 4 . 1 . . . . . . . Duelist 3 | . . . . 1 . 1 . 1 . . . . . . . . . . . . . . . Protector 1 | . . . . 1 . . . . . . . . . . . . . . . . . . . Researcher 1 | . . . . . . . . . . . . . . . . . . . . . . . 1 Sentry 34 | . . 3 4 10 . . 1 . . . . . . 1 . . . 4 . 3 2 3 3 Specialist 3 | . . . . . . 3 . . . . . . . . . . . . . . . . . Hunter 10 | . . . 1 . . . . . . . . 2 2 . . . . . . . . . 5 Programmer 19 | . . . . . . . 1 . 1 . 1 4 . . . . 1 1 1 . . 7 2 Heavy 3 | . . . . . . 1 . . . . . . . . . . . . . . . 2 . Behemoth 4 | . . . . . . . . . 1 . 1 . 1 . . . . 1 . . . . . Cetus Guard 5 | . . . . . . . . . . . . . . . . . . . 5 . . . . Enhanced Grunt 1 | . . . . . . . . . . . . . . . . . . . . . 1 . . Protovariant L 1 | . . . . . . . . . . . . . . . . . . . . . . . 1 Thug 1 | . . . . . . . . . . . . . . . . . . 1 . . . . . Best Kill Streak 9 | 4 5 6 7 8 . 7 2 4 4 . 7 7 5 5 . 3 2 6 4 5 3 7 9 Combat Bots Only 7 | . 3 5 6 7 . 7 1 4 4 . 7 2 5 5 . 3 2 3 4 3 1 7 7 Max Kills in Single Turn 4 | 1 1 2 2 2 . 2 1 1 3 . 4 4 2 2 . 1 1 2 1 2 1 2 3 Gunslinging 1 | . . . . 1 . . . . . . . . . . . . . . . . . . . Exploded 4 | . . . . . . . . . 2 . 4 1 . . . 1 1 1 . . . 1 2 Melee . | . . . . . . . . . . . . . . . . . . . . . . . . Uniques/NPCs Destroyed . | . . . . . . . . . . . . . . . . . . . . . . . . Combat | -11 -10 -9 -8 -8 -7 -7 -6 -6 -6 -6 -5 -5 -5 -5 -5 -4 -4 -4 -4 -4 -4 -3 -3 -------- Run | Yrd Mat Mat Mat Sto Fac DSF Fac Low Low Dat Pro Fac Upp Upp Zhi Pro Fac Ext Cet Arc Hub Res Tes Hostile Shots Fired 1620 | . 8 48 105 98 . 84 20 24 22 . 58 63 59 41 . 50 44 100 46 . 118 156 476 Missed 451 | . 3 17 25 28 . 22 7 7 3 . 25 21 14 5 . 10 15 32 12 . 21 46 138 Hits 1169 | . 5 31 80 70 . 62 13 17 19 . 33 42 45 36 . 40 29 68 34 . 97 110 338 Melee 8 | . . . . . . 2 . 2 1 . . . . 2 . 1 . . . . . . . Projectile 1161 | . 5 31 80 70 . 60 13 15 18 . 33 42 45 34 . 39 29 68 34 . 97 110 338 AOE 1 | . . . . . . . . . . . . . . . . . 1 . . . . . . Critical Strikes 62 | . . . 6 4 . 3 1 . . . 2 2 1 2 . 3 3 3 1 . 12 4 15 Actively Blocked 3 | . . . . . . . . . . . . . . . . . . . . . . 3 . Part Disruptions 2 | . . . . . . . . . . . . . . . . . . . . . . 1 1 Damage Taken 24765 | . 56 276 1136 1177 . 1212 236 365 353 . 711 1090 1363 664 . 941 822 1604 584 . 2626 3245 6304 Core 3641 | . . 20 76 179 . 248 . 39 57 . 82 66 497 72 . 172 214 377 13 . 296 201 1032 Absorbed by Shields 805 | . . . . . . . . . . . . . . . . . . 598 207 . . . . Reduced by Siege Mode 224 | . . . . . . . . . . . . . . . . . . . . . 6 . 218 Redirected to Shielding 160 | . . . . . . . . . . . . . . . . 160 . . . . . . . Core Remaining (%) 66 | 100 100 95 . 53 . 64 . . . . 79 . . . . 19 . . . . 21 . . Volleys Fired 635 | 5 12 42 62 109 . 25 10 9 8 . 18 34 19 9 . 18 22 45 16 19 18 59 76 Largest 5 | 2 2 3 4 4 . 4 4 4 4 . 4 5 5 5 . 5 4 5 5 5 5 5 5 Hottest 663 | 70 70 90 132 132 . 124 140 143 143 . 178 290 322 588 . 288 224 394 351 266 191 663 397 Shots Fired 2370 | 10 24 126 248 377 . 100 36 31 29 . 66 144 85 33 . 64 54 206 60 95 86 222 274 Gun 1778 | 10 24 126 248 357 . 92 18 9 8 . 18 54 22 15 . 41 53 139 36 94 69 170 175 Cannon 498 | . . . . 3 . 8 18 18 16 . 35 72 57 18 . 21 . 67 24 1 17 32 91 Launcher 89 | . . . . 12 . . . 4 5 . 13 18 6 . . 2 1 . . . . 20 8 Special 5 | . . . . 5 . . . . . . . . . . . . . . . . . . . Kinetic 1356 | 5 12 111 235 320 . 100 18 9 8 . 18 33 19 27 . 43 37 73 36 70 86 49 47 Thermal 846 | 5 12 15 13 45 . . 18 18 16 . 35 72 60 6 . 19 16 117 22 25 . 153 179 Explosive 61 | . . . . 12 . . . 4 5 . 13 18 6 . . 2 1 . . . . . . Electromagnetic 107 | . . . . . . . . . . . . 21 . . . . . 16 2 . . 20 48 Robot Hit Streak 22 | 6 11 8 14 18 . 9 9 9 21 . 13 16 15 18 . 7 7 15 13 7 15 18 22 Robot Miss Streak 12 | 1 3 4 5 6 . 2 2 3 3 . 5 3 3 1 . 8 2 6 6 3 12 5 8 Penetration Max 2 | . . . . . . 1 . . . . . 1 . 2 . 1 1 1 1 1 1 1 2 Secondary Targets 32 | . . 2 6 12 . 4 . . . . . . . . . . 1 2 . . . 2 3 Max Gunslinging Chain 2 | . . 1 1 2 . 1 . . . . . . . . . . 1 1 . . . 1 1 Shots Hit Robots 1317 | 8 16 59 153 203 . 68 18 16 18 . 32 83 47 19 . 34 32 120 34 47 38 127 145 Core Hits 634 | 4 8 26 50 76 . 25 7 10 12 . 28 54 16 16 . 10 9 54 15 25 20 69 100 Critical Kills 20 | . . . . . . 4 . . . . . 1 . 1 . 1 . 2 5 5 . . 1 Critical Parts Destroyed 16 | . . . 1 . . 1 . . . . . . . 3 . 3 . 1 2 . 2 . 3 Critical Strikes 73 | . 1 1 2 1 . 5 . . . . . 2 4 9 . 7 . 12 7 5 3 . 14 Burn 13 | . 1 1 1 1 . . . . . . . . . . . . . 5 . . . . 4 Meltdown 1 | . . . . . . . . . . . . 1 . . . . . . . . . . . Destroy 36 | . . . 1 . . 5 . . . . . . . 4 . 5 . 3 7 5 2 . 4 Blast 17 | . . . . . . . . . . . . 1 4 5 . 2 . 4 . . 1 . . Corrupt 6 | . . . . . . . . . . . . . . . . . . . . . . . 6 Melee Attacks . | . . . . . . . . . . . . . . . . . . . . . . . . Impact . | . . . . . . . . . . . . . . . . . . . . . . . . Slashing . | . . . . . . . . . . . . . . . . . . . . . . . . Piercing . | . . . . . . . . . . . . . . . . . . . . . . . . Sneak Attacks . | . . . . . . . . . . . . . . . . . . . . . . . . Combat Hostiles . | . . . . . . . . . . . . . . . . . . . . . . . . Follow-up Attacks . | . . . . . . . . . . . . . . . . . . . . . . . . Damage Inflicted 41552 | 102 202 1050 2595 3631 . 1513 495 669 792 . 2672 3662 1507 851 . 1024 878 3906 1098 1528 1593 5020 6764 Guns 24203 | 102 202 1049 2589 3559 . 1426 170 110 138 . 174 598 259 464 . 521 878 2384 619 1528 1229 3268 2936 Cannons 9510 | . . . . 24 . 87 325 323 356 . 540 1487 1129 387 . 385 . 1281 479 . 230 898 1579 Explosions 7500 | . . . . . . . . 236 298 . 1958 1481 119 . . 118 . 184 . . 89 792 2225 Melee . | . . . . . . . . . . . . . . . . . . . . . . . . Ramming 339 | . . 1 6 48 . . . . . . . 96 . . . . . 57 . . 45 62 24 Kinetic 17321 | 51 88 937 2409 3103 . 1513 170 110 138 . 174 461 303 690 . 636 614 1284 694 1137 1459 645 705 Thermal 16531 | 51 114 112 180 480 . . 325 323 356 . 773 1470 1085 161 . 270 264 2094 388 391 . 3591 4103 Explosive 3977 | . . . . . . . . 236 298 . 1725 1481 119 . . 118 . . . . . . . Electromagnetic 3384 | . . . . . . . . . . . . 154 . . . . . 471 16 . 89 722 1932 Impact . | . . . . . . . . . . . . . . . . . . . . . . . . Slashing . | . . . . . . . . . . . . . . . . . . . . . . . . Piercing . | . . . . . . . . . . . . . . . . . . . . . . . . Highest Corruption 24 | . . . . 1 . . . . 2 2 2 3 3 3 3 3 3 3 3 3 24 15 20 Average Corruption 4 | . . . . 1 . . . . 1 2 2 2 3 3 3 3 2 3 3 3 6 11 17 Corruption Purged . | . . . . . . . . . . . . . . . . . . . . . . . . Corruption Blocked . | . . . . . . . . . . . . . . . . . . . . . . . . Effects 304 | . . . . 14 . . . . 3 4 24 12 26 13 9 24 2 30 26 18 9 25 65 Message Errors 84 | . . . . 2 . . . . 1 1 10 2 9 5 2 4 1 9 11 5 1 5 16 Matter Fused 59 | . . . . 4 . . . . 1 1 5 1 3 3 1 4 1 7 8 4 . 3 13 Heat Flow Errors 36 | . . . . 2 . . . . . . 2 3 2 2 2 2 . 6 3 . 2 5 5 Energy Discharges 30 | . . . . 1 . . . . . . 2 4 1 . 1 6 . 3 . 4 1 2 5 Parts Rejected 1 | . . . . . . . . . . . . . . . . . . . . . . . 1 Parts Fused 2 | . . . . . . . . . . . . . 1 . . . . . . . . . 1 Data Loss (minor) 37 | . . . . 3 . . . . . 2 3 2 4 1 3 2 . 1 1 3 1 3 8 Data Loss (major) 12 | . . . . 1 . . . . 1 . . . 1 2 . 3 . 2 . 1 . . 1 Misfires 13 | . . . . 1 . . . . . . . . 3 . . 1 . . 2 1 . 2 3 Alerts 5 | . . . . . . . . . . . 2 . 1 . . . . 1 . . . 1 . Misdirections 2 | . . . . . . . . . . . . . . . . . . . . . . . 2 Weapon Failures 23 | . . . . . . . . . . . . . 1 . . 2 . 1 1 . 4 4 10 Overload Shots 30 | . . . . . . . 2 . . . 1 2 . 2 . . . . . . . 17 6 Effects 1 | . . . . . . . . . . . . . . . . . . . . . . 1 . Energy Bleed 1 | . . . . . . . . . . . . . . . . . . . . . . 1 . Overflow Damage 398 | . . . . . . . 14 3 9 . 101 58 15 . . 25 . . 15 . 10 96 52 Projectiles 139 | . . . . . . . 14 . 9 . 23 31 15 . . . . . 15 . 9 20 3 Explosions 239 | . . . . . . . . 3 . . 78 27 . . . 25 . . . . 1 56 49 Melee 20 | . . . . . . . . . . . . . . . . . . . . . . 20 . Knockbacks 19 | . . . . 2 . . . . . . . . 1 3 . 1 . 6 2 . 3 1 . Impact 3 | . . . . 2 . . . . . . . . . . . . . . . . . 1 . Kinetic 13 | . . . . . . . . . . . . . 1 3 . 1 . 5 1 . 2 . . Secondary 3 | . . . . . . . . . . . . . . . . . . 1 1 . 1 . . Self-Inflicted Damage 1352 | . . . . 111 . . 130 . . . 73 293 . . . . 146 . . . 104 175 320 Shots 54 | . . . . 7 . . 2 . . . 3 6 . . . . 2 . . . 1 9 24 Rammed 14 | . . 1 1 3 . . . . . . . 3 . . . . . . . . 1 2 3 Targets Rammed 24 | . . 1 1 4 . . . . . . . 3 . . . . . 5 . . 1 2 7 Kicked 9 | . . . . . . . . . . . . . . . . . . 5 . . . . 4 Crushed 1 | . . . . 1 . . . . . . . . . . . . . . . . . . . Highest Temperature 806 | 36 51 106 386 464 . 56 187 303 117 . 347 423 738 474 265 739 392 806 408 521 339 737 414 Average Temperature 135 | 16 23 34 116 124 . 10 61 183 56 . 121 115 246 212 112 292 158 192 101 152 107 169 117 Received Heat Transfer 4162 | . 30 24 531 495 . 441 18 135 24 . 159 189 111 180 . 145 165 202 18 . 141 424 730 Effects 114 | . . . 2 3 . . . . . . 2 9 24 9 . 16 2 31 1 3 . 9 3 Shutdowns 29 | . . . . 1 . . . . . . . . 7 3 . 6 1 10 . . . 1 . Energy Bleed 13 | . . . 1 1 . . . . . . 1 3 3 1 . 1 . 1 . 1 . . . Interference 30 | . . . 1 . . . . . . . . 2 7 3 . . . 8 1 1 . 5 2 Matter Decay 5 | . . . . . . . . . . . . . 1 1 . 1 . 1 . . . 1 . Short Circuit 13 | . . . . 1 . . . . . . 1 . 1 1 . 4 . 2 . 1 . 1 1 Damage (minor) 6 | . . . . . . . . . . . . . . . . 2 1 2 . . . 1 . Damage (major) 13 | . . . . . . . . . . . . 4 2 . . 1 . 6 . . . . . Damage (core) 5 | . . . . . . . . . . . . . 3 . . 1 . 1 . . . . . Siege Activations 3 | . . . . . . . . . . . . . . . . . . . . . 1 . 2 Total Turns 91 | . . . . . . . . . . . . . . . . . . . . . 6 . 85 Longest Duration 61 | . . . . . . . . . . . . . . . . . . . . . 6 . 61 Martial Activations . | . . . . . . . . . . . . . . . . . . . . . . . . Shielding Activations . | . . . . . . . . . . . . . . . . . . . . . . . . Robots Disrupted 1 | . . . . . . . . . . . . . . . . . . . . . . . 1 Combat Hostiles 1 | . . . . . . . . . . . . . . . . . . . . . . . 1 Robots Corrupted 6 | . . . . . . . . . . . . . . . . . . . . . . 2 4 Combat Hostiles 5 | . . . . . . . . . . . . . . . . . . . . . . 1 4 Parts Fried 29 | . . . . . . . . . . . . . . . . . . 5 . . . 9 15 Impact Corruptions 2 | . . . . . . . . . . . . . . . . . . . 1 . . 1 . Robots Melted 2 | . . . . . . . . . . . . 1 1 . . . . . . . . . . Combat Hostiles 1 | . . . . . . . . . . . . . 1 . . . . . . . . . . Parts Melted 50 | . 1 1 2 2 . . 3 . 1 . . 9 4 . . . . 10 . 1 . 6 10 Heat Transferred 22659 | 148 407 407 407 962 . . 500 500 500 . 1020 2174 1588 211 . 444 370 3622 536 518 . 3869 4476 Parts Sabotaged . | . . . . . . . . . . . . . . . . . . . . . . . . Parts Stolen 1 | . . . . . . . . . 1 . . . . . . . . . . . . . . Parts Stripped . | . . . . . . . . . . . . . . . . . . . . . . . . Power Chain Reactions 6 | . . . . . . . . . . . . . . . . . . 1 . . . 1 4 Alert | -11 -10 -9 -8 -8 -7 -7 -6 -6 -6 -6 -5 -5 -5 -5 -5 -4 -4 -4 -4 -4 -4 -3 -3 ------- Run | Yrd Mat Mat Mat Sto Fac DSF Fac Low Low Dat Pro Fac Upp Upp Zhi Pro Fac Ext Cet Arc Hub Res Tes Maximum Alert Level 4 | . . . 1 1 . 1 1 . . . . 2 . . . . 2 4 4 2 2 3 3 Low Security (%) 37 | 100 100 100 87 38 100 72 93 . . . . 20 . . . . 4 42 . . 31 . . Level 1 26 | . . . 12 61 . 27 6 . . . . 47 . . . . 60 4 . . 11 45 37 Level 2 20 | . . . . . . . . . . . . 31 . . . . 35 10 28 100 56 31 42 Level 3 11 | . . . . . . . . . . . . . . . . . . 20 57 . . 22 19 Level 4 3 | . . . . . . . . . . . . . . . . . . 21 13 . . . . Level 5 . | . . . . . . . . . . . . . . . . . . . . . . . . High Security . | . . . . . . . . . . . . . . . . . . . . . . . . Max Security . | . . . . . . . . . . . . . . . . . . . . . . . . Sterilizations 1 | . . . . . . 1 . . . . . . . . . . . . . . . . . Peak Influence 1454 | 15 62 139 269 341 136 383 220 . . . . 458 . . . . 460 1454 1248 660 699 751 1090 Initial 743 | . 3 17 46 105 136 77 200 . . . . 9 . . . . 450 126 743 483 157 351 400 Average 370 | 1 10 81 83 228 124 178 72 . . . . 307 . . . . 314 561 845 571 424 492 538 Influence Increases 12120 | 20 82 451 538 1036 4 336 206 90 150 . 510 864 230 160 . 105 703 2140 1071 349 794 916 1365 Destroy 0b10 Robot/C 5840 | . 60 320 400 680 . 240 40 80 120 . 460 260 200 160 . 80 80 940 440 80 180 480 540 Destroy 0b10 Robot/NC 435 | 20 10 30 40 55 . 10 15 . . . . 70 . . . 10 . 45 10 45 15 25 35 Destroy Leader 1020 | . 12 80 96 196 . 40 24 10 30 . 50 58 30 . . 10 20 86 40 . 44 130 64 Allied During Kill 1775 | . . . . 9 . . . . . . . . . . . 5 . 927 490 120 224 . . Successful Hack 111 | . . 5 . 12 4 . 39 . . . . . . . . . 3 . . . . 21 27 Disable Machine 600 | . . 15 . 60 . 15 75 . . . . 75 . . . . 60 30 45 60 90 30 45 Destroy Structure 1079 | . . 1 2 24 . 1 13 . . . . 356 . . . . 90 82 46 44 196 80 144 Advance Influence 450 | . . . . . . . . . . . . . . . . . 450 . . . . . . Lose Combat Pursuer 510 | . . . . . . 30 . . . . . 45 . . . . . 30 . . 45 150 210 Active Sensor Use 300 | . . . . . . . . . . . . . . . . . . . . . . . 300 Influence Decreases 11161 | 15 45 381 398 987 195 63 521 146 162 . 494 464 646 160 . 105 444 1071 1191 1107 573 874 1119 Entered New Map 3181 | . 2 25 66 147 165 33 183 26 3 . . 7 155 . . . . 133 585 725 293 320 313 Time Decay 6317 | 15 43 356 332 650 30 . 338 110 159 . 494 417 458 150 . 45 294 568 486 362 90 434 486 Search Patrol Dispatched 300 | . . . . . . . . . . . . . . . . . 150 . . . . . 150 Lost Part 473 | . . . . 10 . 30 . 10 . . . 40 33 10 . 20 . 20 . . 10 120 170 Lost Ally 740 | . . . . 180 . . . . . . . . . . . 40 . 200 120 20 180 . . Purge Threat 150 | . . . . . . . . . . . . . . . . . . 150 . . . . . Squads Dispatched 58 | . 1 2 5 6 . 2 2 . . . . 7 . . . . 3 5 . . 4 8 13 Investigation 9 | . . . 1 . . . . . . . . 1 . . . . 1 2 . . . 1 3 Extermination 9 | . . . . . . . 1 . . . . 2 . . . . 2 . . . . 2 2 Reinforcement 26 | . 1 2 1 3 . 2 1 . . . . 4 . . . . . 1 . . 2 2 7 Assault 5 | . . . . 2 . . . . . . . . . . . . . 2 . . . . 1 Garrison 9 | . . . 3 1 . . . . . . . . . . . . . . . . 2 3 . Intercept . | . . . . . . . . . . . . . . . . . . . . . . . . Searches Triggered 2 | . . . . . . . . . . . . . . . . . 1 . . . . . 1 Data Miner Redirects 7 | . . . . . . . . . . . . 1 . . . . . 4 . . . . 2 Construction Impeded 6 | . . . . 1 . . . . . . . 1 . . . . . . . . 1 . 3 Haulers Reinforced 4 | . . . . . . . . . . . . 3 . . . . . . . . 1 . . Active Scanning Responses 3 | . . . . . . . . . . . . . . . . . . . . . . . 3 Cargo Convoy Interrupts . | . . . . . . . . . . . . . . . . . . . . . . . . Stealth | -11 -10 -9 -8 -8 -7 -7 -6 -6 -6 -6 -5 -5 -5 -5 -5 -4 -4 -4 -4 -4 -4 -3 -3 --------- Run | Yrd Mat Mat Mat Sto Fac DSF Fac Low Low Dat Pro Fac Upp Upp Zhi Pro Fac Ext Cet Arc Hub Res Tes Distress Signals 15 | . . 1 . . . . . . . . . 1 . . . . . 2 2 1 . 3 5 Communications Jammed . | . . . . . . . . . . . . . . . . . . . . . . . . Distress Signals . | . . . . . . . . . . . . . . . . . . . . . . . . Times Spotted 399 | . 6 20 23 43 . 16 5 4 7 . 23 17 10 8 . 8 5 44 25 9 23 31 72 Peak Tracking Total 12 | . 2 4 5 5 . 5 1 4 4 . 5 2 5 8 . 4 3 5 9 1 10 5 12 Tactical Retreats 18 | . . . . . . 1 . . . . . 3 . . . . . 1 . . 2 4 7 Traps | -11 -10 -9 -8 -8 -7 -7 -6 -6 -6 -6 -5 -5 -5 -5 -5 -4 -4 -4 -4 -4 -4 -3 -3 ------- Run | Yrd Mat Mat Mat Sto Fac DSF Fac Low Low Dat Pro Fac Upp Upp Zhi Pro Fac Ext Cet Arc Hub Res Tes Traps Triggered 12 | . . 1 1 4 . 1 . . . . . . . . . . . 2 . . 1 2 . Indirectly . | . . . . . . . . . . . . . . . . . . . . . . . . Trap Hack Attempts . | . . . . . . . . . . . . . . . . . . . . . . . . Triggered . | . . . . . . . . . . . . . . . . . . . . . . . . Disarmed . | . . . . . . . . . . . . . . . . . . . . . . . . Reprogrammed . | . . . . . . . . . . . . . . . . . . . . . . . . Reused . | . . . . . . . . . . . . . . . . . . . . . . . . Traps Extracted . | . . . . . . . . . . . . . . . . . . . . . . . . Installed . | . . . . . . . . . . . . . . . . . . . . . . . . Triggered . | . . . . . . . . . . . . . . . . . . . . . . . . Machines | -11 -10 -9 -8 -8 -7 -7 -6 -6 -6 -6 -5 -5 -5 -5 -5 -4 -4 -4 -4 -4 -4 -3 -3 ---------- Run | Yrd Mat Mat Mat Sto Fac DSF Fac Low Low Dat Pro Fac Upp Upp Zhi Pro Fac Ext Cet Arc Hub Res Tes Machines Disabled 49 | . . 1 . 4 . 1 5 . . . 4 5 . 1 . . 4 4 5 4 6 2 3 Max in Single Turn 3 | . . 1 . 1 . 1 3 . . . 2 1 . 1 . . 2 1 1 1 3 1 1 Garrison Access 1 | . . . . 1 . . . . . . . . . . . . . . . . . . . Network Hub 1 | . . . . . . . . . . . . . . . . . . . . . 1 . . Machines Repaired . | . . . . . . . . . . . . . . . . . . . . . . . . Machines Dismantled 2 | . . . . . . . . . . . . . . . . . . 1 1 . . . . Machines Sabotaged . | . . . . . . . . . . . . . . . . . . . . . . . . Overloaded Fab Kills . | . . . . . . . . . . . . . . . . . . . . . . . . Hacking | -11 -10 -9 -8 -8 -7 -7 -6 -6 -6 -6 -5 -5 -5 -5 -5 -4 -4 -4 -4 -4 -4 -3 -3 --------- Run | Yrd Mat Mat Mat Sto Fac DSF Fac Low Low Dat Pro Fac Upp Upp Zhi Pro Fac Ext Cet Arc Hub Res Tes Machines Accessed 48 | . 2 2 1 9 1 . 4 . . 4 . 1 . . 8 . 3 4 . . 1 3 5 Terminals 29 | . 2 1 1 8 1 . 4 . . . . . . . . . 2 4 . . 1 1 4 Fabricators 2 | . . . . . . . . . . . . 1 . . . . . . . . . . 1 Repair Stations 2 | . . . . . . . . . . . . . . . . . 1 . . . . 1 . Recycling Units . | . . . . . . . . . . . . . . . . . . . . . . . . Scanalyzers 1 | . . 1 . . . . . . . . . . . . . . . . . . . . . Garrison Access 2 | . . . . 1 . . . . . . . . . . . . . . . . . 1 . Total Hacks 154 | . 3 7 2 18 2 . 10 . . 29 . 2 . . 46 . 8 9 . . 3 8 7 Successful 104 | . 2 3 . 7 1 . 6 . . 29 . 1 . . 46 . 4 1 . . 1 2 1 Failed 50 | . 1 4 2 11 1 . 4 . . . . 1 . . . . 4 8 . . 2 6 6 Catastrophic 15 | . . 1 1 5 . . . . . . . 1 . . . . 1 2 . . . 2 2 Database Lockouts . | . . . . . . . . . . . . . . . . . . . . . . . . Manual 12 | . . . . . . . . . . . . . . . 3 . . 2 4 3 . . . Terminals 61 | . 3 4 2 14 2 . 10 . . . . . . . . . 6 9 . . 3 3 5 Fabricators 4 | . . . . . . . . . . . . 2 . . . . . . . . . . 2 Repair Stations 5 | . . . . . . . . . . . . . . . . . 2 . . . . 3 . Recycling Units . | . . . . . . . . . . . . . . . . . . . . . . . . Scanalyzers 3 | . . 3 . . . . . . . . . . . . . . . . . . . . . Garrison Access 6 | . . . . 4 . . . . . . . . . . . . . . . . . 2 . Terminal Hacks 98 | . 2 2 . 6 1 . 6 . . 29 . . . . 46 . 2 1 . . 1 1 1 Record 47 | . . . . . . . . . . 11 . . . . 35 . . . . . . 1 . Part Schematic 13 | . . . . . . . . . . 10 . . . . 3 . . . . . . . . Robot Schematic 5 | . . . . . . . . . . 5 . . . . . . . . . . . . . Robot Analysis 4 | . . . . . . . . . . . . . . . 4 . . . . . . . . Prototype ID Bank 8 | . . . . 1 . . . . . 3 . . . . 4 . . . . . . . . Open Door 3 | . . . . 2 . . . . . . . . . . . . 1 . . . . . . Open DSF 2 | . . . . . 1 . 1 . . . . . . . . . . . . . . . . Branch Access Points 1 | . . . . 1 . . . . . . . . . . . . . . . . . . . Emergency Access Points 2 | . . . . . . . . . . . . . . . . . 1 . . . . . 1 Unreport Threat 1 | . . . . . . . . . . . . . . . . . . 1 . . . . . Locate Traps 1 | . . 1 . . . . . . . . . . . . . . . . . . . . . Dispatch Records 2 | . . . . 1 . . 1 . . . . . . . . . . . . . . . . Transport Status 1 | . . . . 1 . . . . . . . . . . . . . . . . . . . Hauler Manifests 1 | . . 1 . . . . . . . . . . . . . . . . . . . . . Registered Components 2 | . 1 . . . . . 1 . . . . . . . . . . . . . . . . Zone Layout 5 | . 1 . . . . . 3 . . . . . . . . . . . . . 1 . . Fabricator Hacks 1 | . . . . . . . . . . . . 1 . . . . . . . . . . . Load Schematic 1 | . . . . . . . . . . . . 1 . . . . . . . . . . . Repair Station Hacks 3 | . . . . . . . . . . . . . . . . . 2 . . . . 1 . Scan Component 2 | . . . . . . . . . . . . . . . . . 1 . . . . 1 . Repair 1 | . . . . . . . . . . . . . . . . . 1 . . . . . . Recycling Unit Hacks . | . . . . . . . . . . . . . . . . . . . . . . . . Scanalyzer 1 | . . 1 . . . . . . . . . . . . . . . . . . . . . Insert Component 1 | . . 1 . . . . . . . . . . . . . . . . . . . . . Garrison Access Hacks 1 | . . . . 1 . . . . . . . . . . . . . . . . . . . Seal Access 1 | . . . . 1 . . . . . . . . . . . . . . . . . . . Unauthorized Hacks . | . . . . . . . . . . . . . . . . . . . . . . . . Terminals . | . . . . . . . . . . . . . . . . . . . . . . . . Fabricators . | . . . . . . . . . . . . . . . . . . . . . . . . Repair Stations . | . . . . . . . . . . . . . . . . . . . . . . . . Recycling Units . | . . . . . . . . . . . . . . . . . . . . . . . . Scanalyzers . | . . . . . . . . . . . . . . . . . . . . . . . . Garrison Access . | . . . . . . . . . . . . . . . . . . . . . . . . Data Cores Recovered 1 | . . . . . . . 1 . . . . . . . . . . . . . . . . Used . | . . . . . . . . . . . . . . . . . . . . . . . . Hacking Detections 32 | . 1 1 1 7 1 . 4 . . . . 1 . . . . 2 5 . . 1 3 5 Full Trace Events 3 | . . 1 . . . . . . . . . . . . . . 1 1 . . . . . Feedback Events . | . . . . . . . . . . . . . . . . . . . . . . . . Feedback Blocked . | . . . . . . . . . . . . . . . . . . . . . . . . Robot Schematics Acquired 6 | . . . . . . . . . . 5 . . . . . . . . . . . . 1 Robots Built . | . . . . . . . . . . . . . . . . . . . . . . . . Authchips . | . . . . . . . . . . . . . . . . . . . . . . . . Time . | . . . . . . . . . . . . . . . . . . . . . . . . Total Robot Build Rating . | . . . . . . . . . . . . . . . . . . . . . . . . Part Schematics Acquired 13 | . . . . . . . . . . 10 . . . . 3 . . . . . . . . Parts Built . | . . . . . . . . . . . . . . . . . . . . . . . . Authchips . | . . . . . . . . . . . . . . . . . . . . . . . . Time . | . . . . . . . . . . . . . . . . . . . . . . . . Total Part Build Rating . | . . . . . . . . . . . . . . . . . . . . . . . . Parts Repaired . | . . . . . . . . . . . . . . . . . . . . . . . . Time 50 | . . . . . . . . . . . . . . . . . 50 . . . . . . Parts Recycled . | . . . . . . . . . . . . . . . . . . . . . . . . Recycled Matter . | . . . . . . . . . . . . . . . . . . . . . . . . Retrieved Matter . | . . . . . . . . . . . . . . . . . . . . . . . . Retrieved Components . | . . . . . . . . . . . . . . . . . . . . . . . . Parts Scanalyzed 1 | . . 1 . . . . . . . . . . . . . . . . . . . . . Part Schematics Acquired . | . . . . . . . . . . . . . . . . . . . . . . . . Parts Damaged . | . . . . . . . . . . . . . . . . . . . . . . . . Bothacking | -11 -10 -9 -8 -8 -7 -7 -6 -6 -6 -6 -5 -5 -5 -5 -5 -4 -4 -4 -4 -4 -4 -3 -3 ------------ Run | Yrd Mat Mat Mat Sto Fac DSF Fac Low Low Dat Pro Fac Upp Upp Zhi Pro Fac Ext Cet Arc Hub Res Tes Used RIF Installer . | . . . . . . . . . . . . . . . . . . . . . . . . Robots Hacked . | . . . . . . . . . . . . . . . . . . . . . . . . Non-combat . | . . . . . . . . . . . . . . . . . . . . . . . . Combat . | . . . . . . . . . . . . . . . . . . . . . . . . Robot Hacks Applied . | . . . . . . . . . . . . . . . . . . . . . . . . Relay Couplers Released . | . . . . . . . . . . . . . . . . . . . . . . . . Fabnet Peak Effective % . | . . . . . . . . . . . . . . . . . . . . . . . . Robots Rewired 21 | . . . . . . . . . . . . . . 2 . . . 19 . . . . . Allies Hacked . | . . . . . . . . . . . . . . . . . . . . . . . . Hacks Repelled . | . . . . . . . . . . . . . . . . . . . . . . . . Allies | -11 -10 -9 -8 -8 -7 -7 -6 -6 -6 -6 -5 -5 -5 -5 -5 -4 -4 -4 -4 -4 -4 -3 -3 -------- Run | Yrd Mat Mat Mat Sto Fac DSF Fac Low Low Dat Pro Fac Upp Upp Zhi Pro Fac Ext Cet Arc Hub Res Tes Total Allies 37 | . . . . 2 . . . . . . . . . 2 . . . 28 5 . . . . Largest Group 20 | . . . . 2 . . . . . . . . . 2 2 2 . 20 19 12 10 . . Highest-Rated Group 1162 | . . . . 62 . . . . . . . . . 78 78 78 . 914 1162 912 718 . . Highest-Rated Ally 159 | . . . . 31 . . . . . . . . . 49 49 49 . 159 159 156 96 . . Initial Warlord ECA Mod 130 | . . . . . . . 9 9 9 9 8 8 8 8 8 7 7 7 7 7 7 6 6 Total Orders 6 | . . . . 2 . . . . . . . . . . . . . . 1 3 . . . STAY 1 | . . . . . . . . . . . . . . . . . . . . 1 . . . FOLLOW 1 | . . . . . . . . . . . . . . . . . . . . 1 . . . GUARD 2 | . . . . . . . . . . . . . . . . . . . 1 1 . . . EXPLORE 2 | . . . . 2 . . . . . . . . . . . . . . . . . . . Ally Attacks 355 | . . . . 12 . . . . . . . . . . . 5 . 197 78 8 55 . . Total Damage 10122 | . . . . 255 . . . . . . . . . . . 137 . 5886 2015 173 1656 . . Kills 67 | . . . . 3 . . . . . . . . . . . . . 36 19 1 8 . . Allies Corrupted 2 | . . . . . . . . . . . . . . . . . . 1 . . 1 . . Allies Melted . | . . . . . . . . . . . . . . . . . . . . . . . . Intel | -11 -10 -9 -8 -8 -7 -7 -6 -6 -6 -6 -5 -5 -5 -5 -5 -4 -4 -4 -4 -4 -4 -3 -3 ------- Run | Yrd Mat Mat Mat Sto Fac DSF Fac Low Low Dat Pro Fac Upp Upp Zhi Pro Fac Ext Cet Arc Hub Res Tes Active Infowar (turns) 5138 | 7 333 714 . 1811 65 112 . . . . . 41 . . . . 377 460 . 134 . 108 976 Sensors 2577 | . . . . 1388 65 112 . . . . . 41 . . . . 377 460 . 134 . . . A.S.S. 1084 | . . . . . . . . . . . . . . . . . . . . . . 108 976 Terrain 1054 | 7 333 714 . . . . . . . . . . . . . . . . . . . . . T.N.C. 559 | . . . . 510 49 . . . . . . . . . . . . . . . . . . Robot Analysis Total 4 | . . . . . . . . . . . . . . . 4 . . . . . . . . Derelict Logs Recovered 8 | . . . . . . . . 1 . . 3 . . 2 . 2 . . . . . . . Drone Launches 18 | . . . . 18 . . . . . . . . . . . . . . . . . . . Drone Recoveries 4 | . . . . 4 . . . . . . . . . . . . . . . . . . . Exploration | -11 -10 -9 -8 -8 -7 -7 -6 -6 -6 -6 -5 -5 -5 -5 -5 -4 -4 -4 -4 -4 -4 -3 -3 ------------- Run | Yrd Mat Mat Mat Sto Fac DSF Fac Low Low Dat Pro Fac Upp Upp Zhi Pro Fac Ext Cet Arc Hub Res Tes Turns Passed 20995 | 129 333 819 873 2382 65 346 931 419 775 227 1666 1052 1373 1105 377 1138 640 1709 1277 821 197 1063 1278 Spaces Moved 8252 | 66 188 274 254 865 26 91 435 235 303 93 650 369 552 415 149 424 267 665 521 470 69 406 465 Core 63 | 9 . . . . . . . . . . . . . . . . . . . . . . 54 Treads 6748 | 57 156 245 194 793 26 91 435 235 303 93 650 369 552 415 149 424 . . 498 470 69 352 172 Legs 1441 | . 32 29 60 72 . . . . . . . . . . . . 267 665 23 . . 54 239 Wheels . | . . . . . . . . . . . . . . . . . . . . . . . . Hover . | . . . . . . . . . . . . . . . . . . . . . . . . Flight . | . . . . . . . . . . . . . . . . . . . . . . . . Fastest Speed 50 | 50 120 120 240 225 228 228 162 164 245 246 246 166 166 246 246 244 180 180 155 155 156 156 50 Average Speed 211 | 151 153 237 244 229 228 232 195 164 245 246 246 235 233 246 246 244 180 181 197 155 156 191 179 Slowest Speed 540 | 160 160 320 260 480 228 247 246 164 246 246 246 246 247 250 246 246 180 185 320 156 156 540 360 Overloaded Moves . | . . . . . . . . . . . . . . . . . . . . . . . . Propulsion Burnouts . | . . . . . . . . . . . . . . . . . . . . . . . . Robots Hopped . | . . . . . . . . . . . . . . . . . . . . . . . . Potential Cave-ins 2 | . . . . . . . . . . . . 2 . . . . . . . . . . . Cave-ins Triggered . | . . . . . . . . . . . . . . . . . . . . . . . . Teleports 1 | . . . . . . . . . . . . . . . . . . . . . . . 1 Exploration Rate (%) 45 | 4 29 27 22 93 1 88 12 46 46 75 78 11 68 52 62 52 5 77 87 97 13 9 46 Regions Visited 23 Branch Regions 14 Pre-discovered Areas 7 | . . . . 1 . . . 1 . 1 1 . . . 3 . . . . . . . . Known Exits Taken 14 | . . . . . 1 . 1 1 1 1 1 1 1 1 1 1 1 . . . 1 1 . Unknown Exits Taken 8 | 1 1 1 1 1 . . . . . . . . . . . . . 1 1 1 . . . Scrap Searched 13 | . . . . . . . . 1 4 . 3 . 2 1 . 2 . . . . . . . Spaces Dug 89 | . . . . 1 . . . . . . . 4 . . . . 56 . . . . . 28 Terrain Destroyed 1208 | . . . . 19 . 4 12 82 84 . 177 205 119 3 . 35 66 31 12 26 159 47 127 Melee . | . . . . . . . . . . . . . . . . . . . . . . . . Projectile 288 | . . . . . . 3 3 12 5 . 15 22 20 3 . 11 12 22 12 26 32 33 57 AOE 919 | . . . . 19 . . 9 70 79 . 162 183 99 . . 24 54 9 . . 127 14 70 Terrain Rammed . | . . . . . . . . . . . . . . . . . . . . . . . . Walls Destroyed . | . . . . . . . . . . . . . . . . . . . . . . . . Machines Disabled . | . . . . . . . . . . . . . . . . . . . . . . . . Actions | -11 -10 -9 -8 -8 -7 -7 -6 -6 -6 -6 -5 -5 -5 -5 -5 -4 -4 -4 -4 -4 -4 -3 -3 --------- Run | Yrd Mat Mat Mat Sto Fac DSF Fac Low Low Dat Pro Fac Upp Upp Zhi Pro Fac Ext Cet Arc Hub Res Tes Total 10423 | 81 209 362 391 1106 32 172 496 247 314 92 673 464 585 474 161 487 389 1048 729 507 109 566 729 Wait 382 | . . . 6 13 . 22 1 . . . . 1 3 7 . 27 56 4 116 . 8 22 96 Move 8230 | 65 187 273 253 864 25 90 434 234 302 92 649 368 551 414 148 423 266 664 520 469 69 405 465 Hop . | . . . . . . . . . . . . . . . . . . . . . . . . Pick Up 200 | 4 6 18 21 24 1 11 12 1 1 . 2 12 1 1 5 4 12 12 13 3 1 22 13 Fast Attach 154 | 7 . 10 7 21 . 4 8 . 1 . . 8 3 3 2 2 4 31 13 5 5 5 15 Attach 79 | . 1 2 4 2 3 2 3 1 1 . 2 6 3 . . 4 5 7 2 . . 20 11 Detach 32 | . . 3 1 3 . . 2 . 1 . . 2 . . . . 4 4 1 . . 6 5 Swap 100 | . 1 5 8 16 2 5 7 1 . . 1 8 . 1 1 2 5 7 9 3 1 11 6 Drop 296 | . 2 8 28 41 1 13 19 1 . . 1 21 3 1 5 7 15 44 30 8 7 14 27 Fire 635 | 5 12 42 62 109 . 25 10 9 8 . 18 34 19 9 . 18 22 45 16 19 18 59 76 Melee . | . . . . . . . . . . . . . . . . . . . . . . . . Ram . | . . . . . . . . . . . . . . . . . . . . . . . . Kick 9 | . . . . . . . . . . . . . . . . . . 5 . . . . 4 Crush 14 | . . 1 1 4 . . . . . . . 3 . . . . . . . . . 2 3 Escape Stasis 15 | . . . . 2 . . . . . . . . . . . . . 5 . . . . 8 Rewire 251 | . . . . . . . . . . . . 1 2 38 . . . 210 . . . . . Trap . | . . . . . . . . . . . . . . . . . . . . . . . . Miscellaneous 26 | . . . . 7 . . . . . . . . . . . . . 10 9 . . . . Route ------- -11/Scrapyard -10/Materials -9/Materials -8/Materials -8/Storage (discovered 2 exits: *Fac / Rec) -7/Factory -7/DSF -6/Factory -6/Lower Caves -6/Lower Caves -6/Data Miner -5/Proximity Caves -5/Factory (discovered 3 exits: *Fac x2 / *Upp) -5/Upper Caves -5/Upper Caves (discovered 2 exits: *Fac / *Zhi) -5/Zhirov -4/Proximity Caves -4/Factory (discovered 2 exits: Res / *Ext) -4/Extension (discovered 3 exits: *Res x2 / *Cet) -4/Cetus (discovered 3 exits: *Res x2 / *Arc) -4/Archives (discovered 3 exits: *Res / *Hub x2) -4/Hub_04(d) -3/Research (discovered 2 exits: Res / *Tes) -3/Testing History --------- Turn | Location | Event 9 | -11/Scrapyard | Discovered new exit (range 16) 130 | -11/Scrapyard | Entered Materials 315 | -10/Materials | Build established: Mutant 435 | -10/Materials | Discovered new exit (range 3) 463 | -10/Materials | Entered another Materials area 463 | -9/Materials | Evolved 2 slots: Propulsion x1, Weapon x1 765 | -9/Materials | Build established: Skirmisher 1096 | -9/Materials | Discovered new exit (range 9) 1282 | -9/Materials | Entered another Materials area 1282 | -8/Materials | Evolved 2 slots: Utility x1, Weapon x1 1781 | -8/Materials | Build established: Scavenger-Gunner 1837 | -8/Materials | Garrison activated, responded to threat 2043 | -8/Materials | Discovered new exit (range 12) 2155 | -8/Materials | Entered Storage 2774 | -8/Storage | Garrison activated, responded to threat 2876 | -8/Storage | Build established: Skirmisher 3727 | -8/Storage | Identified exit to Recycling 3811 | -8/Storage | Discovered new exit (range 57) 3840 | -8/Storage | Build established: Gunner 3874 | -8/Storage | Lost 11 allies 3985 | -8/Storage | Met a pair of Derelict thieves 4161 | -8/Storage | Destroyed 7 combat bots 4304 | -8/Storage | Build established: Skirmisher 4521 | -8/Storage | Learned location of Armory (-3) 4537 | -8/Storage | Entered Factory 4537 | -7/Factory | Evolved 2 slots: Propulsion x1, Utility x1 4602 | -7/Factory | Identified exit to DSF 4602 | -7/Factory | Entered DSF 4641 | -7/DSF | Additional patrols routed to DSF 4832 | -7/DSF | Discovered new exit (range 15) 4897 | -7/DSF | Sterilization system engaged 4917 | -7/DSF | Ambient heat levels rising (+10) 4917 | -7/DSF | Destroyed 7 combat bots 4932 | -7/DSF | Ambient heat levels rising (+10) 4945 | -7/DSF | Identified exit to Factory 4947 | -7/DSF | Ambient heat levels rising (+10) 4948 | -7/DSF | Entered Factory 4948 | -6/Factory | Evolved 2 slots: Power x1, Propulsion x1 5005 | -6/Factory | Build established: Gunner 5833 | -6/Factory | Discovered new exit (range 8) 5878 | -6/Factory | Identified exit to Lower Caves 5879 | -6/Factory | Entered Lower Caves 5885 | -6/Lower Caves | Met a Warlord Commander 5886 | -6/Lower Caves | Learned location of Warlord (-4) 5887 | -6/Lower Caves | Warlord Commander delivered Encrypted Comm Array 5893 | -6/Lower Caves | Found Encrypted Comm Array 6275 | -6/Lower Caves | Discovered new exit (range 14) 6295 | -6/Lower Caves | Identified exit to Lower Caves 6298 | -6/Lower Caves | Entered another Lower Caves area 6298 | -6/Lower Caves | Spotted B-75 Beast 6306 | -6/Lower Caves | Destroyed B-75 Beast 6980 | -6/Lower Caves | Discovered new exit (range 6) 6989 | -6/Lower Caves | Identified exit to Data Miner 7073 | -6/Lower Caves | Entered Data Miner 7073 | -6/Data Miner | Discovered new exit (range 6) 7120 | -6/Data Miner | Met Data Miner 7194 | -6/Data Miner | Learned location of Section 7 (-2) 7194 | -6/Data Miner | Acquired the access code to Warlord's prototype stash 7238 | -6/Data Miner | Received God Mode back door access code from Data Miner 7297 | -6/Data Miner | Identified exit to Proximity Caves 7300 | -6/Data Miner | Entered Proximity Caves 7300 | -5/Proximity Caves | Learned location of 1 exit from Factory 7300 | -5/Proximity Caves | Spotted B-75 Beast 7310 | -5/Proximity Caves | Destroyed B-75 Beast 7402 | -5/Proximity Caves | Learned Factory stockpile data 7800 | -5/Proximity Caves | Attracted the attention of an 0b10 base 7852 | -5/Proximity Caves | Destroyed 7 combat bots 8762 | -5/Proximity Caves | Discovered new exit (range 15) 8963 | -5/Proximity Caves | Identified exit to Factory 8966 | -5/Proximity Caves | Entered Factory 8966 | -5/Factory | Evolved 2 slots: Utility x1, Weapon x1 8967 | -5/Factory | Identified exit to Factory 9175 | -5/Factory | Discovered exit to Factory (range 15) 9569 | -5/Factory | Discovered new exit (range 3) 9574 | -5/Factory | Identified exit to Upper Caves 9787 | -5/Factory | Incoming investigation squad redirected 10018 | -5/Factory | Entered Upper Caves 11049 | -5/Upper Caves | Spotted B-75 Beast 11063 | -5/Upper Caves | Destroyed B-75 Beast 11068 | -5/Upper Caves | Core integrity fell below 50% 11384 | -5/Upper Caves | Discovered new exit (range 3) 11389 | -5/Upper Caves | Identified exit to Upper Caves 11391 | -5/Upper Caves | Entered another Upper Caves area 11406 | -5/Upper Caves | Learned Factory emergency access door positions 11462 | -5/Upper Caves | Build established: Tank 11587 | -5/Upper Caves | Discovered exit to Factory (range 11) 11858 | -5/Upper Caves | Learned location of 1 exit from Factory 12348 | -5/Upper Caves | Build established: Gunner 12464 | -5/Upper Caves | Discovered new exit (range 7) 12494 | -5/Upper Caves | Identified exit to Zhirov 12496 | -5/Upper Caves | Entered Zhirov 12496 | -5/Zhirov | Accompanied by 2 allies 12496 | -5/Zhirov | Discovered new exit (range 3) 12499 | -5/Zhirov | Identified exit to Proximity Caves 12541 | -5/Zhirov | Met Zhirov 12588 | -5/Zhirov | Learned location of Quarantine (-2) 12588 | -5/Zhirov | Learned location of Testing (-3) 12588 | -5/Zhirov | Learned location of Command (-1) 12642 | -5/Zhirov | Zhirov requested help retrieving the SGEMP Prototype 12688 | -5/Zhirov | Found Alien Artifact 12783 | -5/Zhirov | Found Alien Artifact 12873 | -5/Zhirov | Entered Proximity Caves 12873 | -4/Proximity Caves | Accompanied by 2 allies 12998 | -4/Proximity Caves | Core integrity fell below 20% 13071 | -4/Proximity Caves | Received a Behemoth hack from an annoying Tinkerer 13126 | -4/Proximity Caves | Spotter reported a threat 13184 | -4/Proximity Caves | Spotter reported a threat 13197 | -4/Proximity Caves | Spotter reported a threat 13530 | -4/Proximity Caves | Build established: Scavenger-Tank 13758 | -4/Proximity Caves | Learned location of 1 exit from Research 13904 | -4/Proximity Caves | Discovered exit to Factory (range 6) 13955 | -4/Proximity Caves | Learned Research emergency access door positions 13975 | -4/Proximity Caves | Spotted B-86 Titan 14011 | -4/Proximity Caves | Entered Factory 14011 | -4/Factory | Evolved 2 slots: Propulsion x1, Utility x1 14012 | -4/Factory | Identified exit to Extension 14013 | -4/Factory | Identified exit to Research 14261 | -4/Factory | Search patrols dispatched 14605 | -4/Factory | Found Powered Armor 14651 | -4/Factory | Entered Extension 14712 | -4/Extension | Rescued a captive Derelict 14862 | -4/Extension | Rescued a captive Derelict 14934 | -4/Extension | Rescued A7 15029 | -4/Extension | Lost 3 allies 15051 | -4/Extension | Build established: Scavenger-Skirmisher 15376 | -4/Extension | Disrupted transfer network 15385 | -4/Extension | Spotted B-86 Titan 15402 | -4/Extension | Build established: Scavenger-Gunner 15404 | -4/Extension | Rescued a captive Derelict 15405 | -4/Extension | Rescued a captive Derelict 15424 | -4/Extension | Spotted B-86 Titan 15439 | -4/Extension | Destroyed B-86 Titan 15449 | -4/Extension | Allies destroyed B-86 Titan 15551 | -4/Extension | Discovered exit to Research (range 3) 15558 | -4/Extension | Incoming investigation squad redirected 15658 | -4/Extension | Incoming investigation squad redirected 15845 | -4/Extension | Rescued a captive Derelict 15845 | -4/Extension | Rescued a captive Derelict 15880 | -4/Extension | Rescued a captive Derelict 15881 | -4/Extension | Rescued a captive Derelict 15901 | -4/Extension | First assault squad dispatched 15984 | -4/Extension | Incoming assault squad redirected 16023 | -4/Extension | Lost 6 allies 16088 | -4/Extension | Core integrity fell below 50% 16171 | -4/Extension | Incoming assault squad redirected 16299 | -4/Extension | Discovered exit to Research (range 10) 16303 | -4/Extension | Discovered new exit (range 6) 16360 | -4/Extension | Entered Cetus 16360 | -4/Cetus | Accompanied by 15 allies (A7) 16365 | -4/Cetus | Acquired a Cetus Manufacturing Module code from A7 16382 | -4/Cetus | Spotted Cetus Guard 16382 | -4/Cetus | Spotted Cetus Guard 16383 | -4/Cetus | Spotted Cetus Guard 16384 | -4/Cetus | Spotted Cetus Guard 16398 | -4/Cetus | Allies destroyed Cetus Guard 16399 | -4/Cetus | Allies destroyed Cetus Guard 16400 | -4/Cetus | Allies destroyed Cetus Guard 16400 | -4/Cetus | Destroyed Cetus Guard 16562 | -4/Cetus | Discovered exit to Research (range 15) 16706 | -4/Cetus | Build established: Scavenger-Tank 16817 | -4/Cetus | Started Cetus Manufacturing Module 16842 | -4/Cetus | Manufactured an Enhanced Grunt 16867 | -4/Cetus | Manufactured an Enhanced Grunt 16892 | -4/Cetus | Manufactured an Enhanced Grunt 16917 | -4/Cetus | Manufactured an Enhanced Grunt 16942 | -4/Cetus | Manufactured an Enhanced Grunt 17027 | -4/Cetus | Escorted A7 to Cetus Mainframe 17084 | -4/Cetus | Discovered new exit (range 15) 17110 | -4/Cetus | Security sweep announced 17179 | -4/Cetus | Lost 5 allies 17183 | -4/Cetus | Spotted Cetus Guard 17183 | -4/Cetus | Spotted Cetus Guard 17184 | -4/Cetus | Spotted Cetus Guard 17186 | -4/Cetus | Destroyed Cetus Guard 17191 | -4/Cetus | Spotted Cetus Guard 17194 | -4/Cetus | Destroyed Cetus Guard 17197 | -4/Cetus | Destroyed Cetus Guard 17200 | -4/Cetus | Destroyed Cetus Guard 17217 | -4/Cetus | Discovered exit to Research (range 15) 17231 | -4/Cetus | Met Revision 17 17462 | -4/Cetus | Cetus Manufacturing Module disabled 17637 | -4/Cetus | Entered Archives 17637 | -4/Archives | Accompanied by 12 allies (A7) 17642 | -4/Archives | Received a hacking code to weaken MAIN.C 17788 | -4/Archives | Unable to access archive contents 17794 | -4/Archives | Discovered exit to Research (range 15) 17822 | -4/Archives | Discovered new exit (range 16) 17882 | -4/Archives | Discovered new exit (range 16) 18458 | -4/Archives | Entered Hub_04(d) 18458 | -4/Hub_04(d) | Accompanied by 10 allies 18504 | -4/Hub_04(d) | Discovered exit to Research (range 15) 18538 | -4/Hub_04(d) | Garrison activated, responded to threat 18599 | -4/Hub_04(d) | Network Hub disabled 18604 | -4/Hub_04(d) | Spotted Lightning 18604 | -4/Hub_04(d) | Spotted Lightning 18606 | -4/Hub_04(d) | Spotted Lightning 18608 | -4/Hub_04(d) | System corruption reached 10% 18633 | -4/Hub_04(d) | Lost 9 allies 18655 | -4/Hub_04(d) | Entered Research 18655 | -3/Research | Evolved 2 slots: Utility x2 18656 | -3/Research | Identified exit to Research 18830 | -3/Research | Garrison activated, responded to threat 19158 | -3/Research | Found Prototype Device 19433 | -3/Research | System corruption reached 10% 19501 | -3/Research | Lost 8 parts (1p1n2u4w) 19505 | -3/Research | Destroyed 7 combat bots 19568 | -3/Research | Lost 3 parts (2n1w) 19587 | -3/Research | Discovered new exit (range 6) 19610 | -3/Research | Identified Active Sensor Suite 19615 | -3/Research | Identified exit to Testing 19660 | -3/Research | Found Gamma Bomb Array 19718 | -3/Research | Entered Testing 19862 | -3/Testing | Found Prototype Processor 19886 | -3/Testing | Identified Exp. Target Analyzer 19899 | -3/Testing | Incoming investigation squad redirected 19907 | -3/Testing | Build established: Scavenger-Skirmisher 20336 | -3/Testing | Incoming investigation squad redirected 20468 | -3/Testing | Search patrols dispatched 20710 | -3/Testing | Spotted PL-7D7JWBQ341 20718 | -3/Testing | First assault squad dispatched 20745 | -3/Testing | Destroyed PL-7D7JWBQ341 20779 | -3/Testing | Scanned by Researcher 20846 | -3/Testing | Destroyed 7 combat bots 20882 | -3/Testing | Identified Integrated Dissipator 20882 | -3/Testing | Installed Integrated Dissipator, increased core heat dissipation (+20) 20886 | -3/Testing | Identified Transdimensional Reconstructor 20886 | -3/Testing | Warped through subspace 20905 | -3/Testing | Lost 7 parts (1p3n2u1w) 20916 | -3/Testing | Spotted Alpha 7 20945 | -3/Testing | Core integrity fell below 50% 20970 | -3/Testing | Core integrity fell below 20% 20996 | -3/Testing | Lost 5 parts (3n2u) 20996 | -3/Testing | Destroyed by S-43 Plague with Heavy Machine Gun Last Messages --------------- 20965_ Held in stasis. 20965_ C-55 Analyst is analyzing... 20965_ Penetrated by Slug. 20965_ Centrium Heavy Treads destroyed. 20965_ Penetrated by Slug. 20965_ Adv. Heat Sink destroyed. 20965_ Slug penetrates Wall. 20969_ U-05 Engineer builds a Wall. 20973_ Held in stasis. 20973_ C-55 Analyst is analyzing... 20977_ W-44 Eye sends out distress signal. 20984_ C-30 ARC bursts open, deploying its payload. 20984_ S-43 Plague unfolds itself. 20990_ Machine disabled. 20994_ C-55 Analyst calls for reinforcements. 20994_ ALERT: Hostile activity reported, dispatching reinforcements to area. 20994_ Held in stasis. 20994_ C-55 Analyst is analyzing... [Achievement: 30k Club] Map ----- +----------------------------------------------------+ | | | | | | | | | | | | | | | | | | | | | | | | | | | | | | | | | | | | | | | | | | | ?????????????????????????#???????????????????????? | | ???????????????##########;###????????????????????? | | ???????????????# #????????????????????? | | ???????????????# s #????????????????????? | | ???????????????# c @s #????????????????????? | | ???????????????#?""" "" """ #????????????????????? | | ???????????????# ??" "" "?" #????????????????????? | | ?????????####### """ "" """ #????????????????????? | | ??#??????? # "" #????????????????????? | | ??# ??????" # """"""" #????????????????????? | | ??# ?? ??" " # #????????????????????? | | ??# ?? """ " # #????????????????????? | | ??# ? " # #????????????????????? | | ??# """"" # #????????????????????? | | ??+ """"" #####+#/######????????????????????? | | ??# " ##### #?????????????????????? | | ??# ???" " + #?????????????????????? | | ??# ??" " # !! #?????????????????????? | | ??# """ " !! #?????????????????????? | | ??# # #?????????????????????? | | #########+###### ==#?????????????????????? | | % #?????????????????????? | | "%"????????????????????? | | " ??????????????????? | | ?????????????????? | | ####### ######### ?????????????????? | | ??????# #??#########+########?????????????????? | | ??????# #? #???????????????????????????? | | ??????# #? #???????????????????????????? | +----------------------------------------------------+ Best States ------------- Heat Dissipation 182 Coolant Potential 80 Energy Generation 45 Energy Capacity 600 Matter Stores 300 Matter Capacity 300 Sight Range 16 Robot Scan Range 20 Terrain Scan Range 16 Terrain Scan Density 210 Power Amplification 40 Armor Coverage 850 Propulsion Shielding 90 Point Defense Rating 240 Weapon Cycling 20 Phase Shifting 10 Evasion (%) 50 Targeting Accuracy 16 Target Analysis 10 Armor Integrity Analysis 40 Recoil Reduction 7 Matter Filtering 50 Offensive Hacking 14 Item Schematics ----------------- Combat Drone Bay | -6/Data Miner | Free Lgt. Regenerative Plating | -6/Data Miner | Free Enh. Armored Leg | -6/Data Miner | Free Exp. Heat Sink | -6/Data Miner | Free Imp. KE Penetrator | -6/Data Miner | Free Centrium Wheel | -6/Data Miner | Free Adv. Power Amplifier | -6/Data Miner | Free Hvy. Disruptor Cannon | -6/Data Miner | Free Adv. Coolant Injector | -6/Data Miner | Free Antigrav Array | -6/Data Miner | Free Assault Drone Bay | -5/Zhirov | Free Imp. Arc Thrower | -5/Zhirov | Free Exp. Optical Array | -5/Zhirov | Free Robot Schematics ------------------ Y-54 Guardian | -6/Data Miner | Free E-15 Imp | -6/Data Miner | Free B-60 Warrior | -6/Data Miner | Free A-15 Conveyor | -6/Data Miner | Free G-67 Veteran | -6/Data Miner | Free O-32 Director | -3/Testing | Archive Fabricated ------------ Nothing Repaired ---------- Nothing Alien Tech Used ----------------- Integrated Dissipator Transdimensional Reconstructor Achievements -------------- 30k Club Main Advantage Maybe Next Time I'll Detach My Launcher Tank Turtlemind We Are Legion Challenges ------------ None Game ------ Seed LayeredZhirovReplica Manual? 0 Play Time 04:15:38 Cumulative 56.2 hours Start 2025.09.06 @ 17:47:25 End 2025.09.07 @ 03:31:16 Sessions 1 Manual Loads 0 Difficulty Rogue Special Mode None Game No. 39 Rogue 39 Adventurer 0 Explorer 0 Win Type - Total 0 Types 0/0/0/0/0/0/0/0/0/0 Lore% 19 Gallery% 41 Achievement% 35 Wizard Run 0 Options --------- Layout 0 ASCII 0 Keyboard 0 Movement Arrows Keybinds 0 Fullscreen 1 Font 12/Smallcaps Map View 38x28 Zoom Use 98% Tactical HUD 1 Map Filters NONE Filters NONE Steam SD RUN: 4d77b986-1a63-48b8-b0c3-4126edc24d33